bitfinex/quotes_ETHUSD_20220101
["timestamp","ask_amount","ask_price","bid_price","bid_amount"]
[1641080709765,3.46327062,3761.4,3760.5,0.82748951]
[1641080709965,1.34809033,3761.5,3760.5,0.82748951]
[1641080710217,1.34809033,3761.5,3760.9,0.66471]
[1641080710611,1.34809033,3761.5,3761.0,0.00454739]
[1641080711112,1.34809033,3761.5,3761.1,1.3292992]
[1641080711311,1.96756999,3761.8,3761.0,0.30454739]
[1641080711312,0.15383636,3761.8,3761.0,0.30454739]
[1641080711513,0.15383636,3761.8,3761.2,0.00341054]
[1641080711713,0.15383636,3761.8,3761.1,0.00397897]
[1641080711912,0.15383636,3761.8,3761.2,0.00341054]
[1641080712111,0.15383636,3761.8,3761.4,0.66457]
[1641080712312,0.15383636,3761.8,3761.5,0.6645771]
[1641080712515,0.15383636,3761.8,3761.6,2.55283936]
[1641080712713,0.15383636,3761.8,3761.6,2.85397621]
[1641080712914,0.15383636,3761.8,3761.7,5.49482768]
[1641080713116,0.15383636,3761.8,3761.7,3.2]
[1641080713320,0.15383636,3761.8,3761.7,5.49134786]
[1641080713619,0.15383636,3761.8,3761.7,4.2]
[1641080713863,0.15383636,3761.8,3761.7,6.49063813]
[1641080714064,0.15383636,3761.8,3761.7,6.46971703]
[1641080714368,0.15383636,3761.8,3761.7,4.2]
[1641080714666,0.15383636,3761.8,3761.7,4.42065064]
[1641080715065,0.15383636,3761.8,3761.7,0.22065064]
[1641080715668,3.50383636,3761.8,3761.7,0.22065064]
[1641080715865,0.15383636,3761.8,3761.7,0.22065064]
[1641080716770,4.95383636,3761.8,3761.7,0.22065064]
[1641080716974,2.58978278,3761.8,3761.7,0.22065064]
[1641080718221,0.10383636,3761.8,3761.7,0.22065064]
[1641080718421,2.49304588,3761.8,3761.7,0.22065064]
[1641080718620,0.10383636,3761.8,3761.7,0.22065064]
[1641080719423,2.48837432,3761.8,3761.7,0.22065064]
[1641080719622,0.10383636,3761.8,3761.7,0.22065064]
[1641080720724,2.48236266,3761.8,3761.7,0.22065064]
[1641080720925,2.48248432,3761.8,3761.7,0.22065064]
[1641080721124,0.10383636,3761.8,3761.7,0.11032532]
[1641080721561,6.35741917,3761.8,3761.7,0.21634474]
[1641080724366,8.04041917,3761.8,3761.7,0.21634474]
[1641080725321,11.45062506,3761.8,3761.7,0.21634474]
[1641080726522,11.8449323,3761.8,3761.7,0.21634474]
[1641080726721,6.9949323,3761.8,3761.7,0.21634474]
[1641080727620,3.58472641,3761.8,3761.7,0.21634474]
[1641080729259,2.99461958,3761.8,3761.7,0.21634474]
[1641080730460,1.1811436,3761.8,3761.7,0.21634474]
[1641080730859,0.7981436,3761.8,3761.7,0.21634474]
[1641080731859,2.15817003,3761.8,3761.7,0.21634474]
[1641080732458,0.7981436,3761.8,3761.7,0.21634474]
[1641080743712,3.32698332,3761.8,3761.7,0.21634474]
[1641080743975,3.55,3761.7,3760.3,3.73211448]
[1641080744173,4.933,3761.7,3760.3,3.73211448]
[1641080744377,4.933,3761.7,3760.4,0.00795793]
[1641080744378,0.66484,3761.2,3760.4,0.00795793]
[1641080744778,1.24015189,3761.1,3760.4,0.00795793]
[1641080745575,1.90502189,3761.1,3760.4,0.00795793]
[1641080746376,0.66487,3760.9,3760.4,0.00795793]
[1641080749012,2.02489643,3760.9,3760.4,0.00795793]
[1641080751017,1.36002643,3761.0,3760.4,1.07839102]
[1641080751217,1.36002643,3761.0,3760.4,0.00795793]
[1641080751483,1.36002643,3761.0,3760.5,0.00738951]
[1641080751878,1.36002643,3761.5,3760.7,1.32124426]
[1641080752079,1.36002643,3761.5,3760.9,0.66466]
[1641080752485,1.36002643,3761.6,3761.0,0.00454739]
[1641080753679,1.36002643,3761.7,3761.0,0.00454739]
[1641080754079,1.36002643,3761.4,3761.0,0.00454739]
[1641080755922,1.36002643,3761.5,3761.0,0.00454739]
[1641080757724,0.66474,3761.7,3761.0,0.00454739]
[1641080757725,1.36002643,3761.4,3761.0,0.00454739]
[1641080758976,1.36002643,3761.3,3761.0,0.00454739]
[1641080760574,2.02479643,3761.4,3761.0,0.00454739]
[1641080761578,2.68958643,3761.4,3761.0,0.00454739]
[1641080761777,3.03669951,3761.3,3761.0,0.00454739]
[1641080761978,3.03669951,3761.3,3760.7,0.00625266]
[1641080762178,3.0568905,3761.3,3760.7,0.00625266]
[1641080762632,0.66483,3761.3,3760.7,0.00625266]
[1641080762832,1.36002643,3761.1,3760.7,0.00625266]
[1641080763028,0.66486,3761.0,3760.7,0.00625266]
[1641080763227,0.66486,3761.0,3760.5,0.00738951]
[1641080763429,1.36002643,3761.0,3760.5,0.00738951]
[1641080764429,0.69427506,3761.2,3760.5,1.33158898]
[1641080764631,0.69427506,3761.2,3760.6,0.66472]
[1641080764831,0.69427506,3761.2,3760.8,0.6646953]
[1641080765231,0.69427506,3761.2,3760.9,0.30511581]
[1641080765636,0.69427506,3761.2,3761.0,0.00454739]
[1641080768376,0.69427506,3761.2,3760.9,0.00511581]
[1641080768576,0.69427506,3761.2,3760.6,1.98892787]
[1641080768777,0.69427506,3761.2,3760.7,0.00625266]
[1641080769579,0.69427506,3761.2,3760.5,0.00738951]
[1641080769776,0.69427506,3761.2,3760.6,0.66472]
[1641080770238,0.69427506,3761.2,3760.7,0.00625266]
[1641080770738,0.69427506,3761.2,3760.7,0.67095676]
[1641080771133,0.69427506,3761.2,3760.8,0.00568424]
[1641080774069,0.69427506,3761.2,3760.7,0.00625266]
[1641080774869,0.69427506,3761.2,3760.6,1.00682108]
[1641080775072,0.69427506,3761.2,3760.7,0.00625266]
[1641080775271,1.35756374,3760.8,3760.7,0.00625266]
[1641080775473,3.81526731,3760.8,3760.7,0.00625266]
[1641080775674,3.81526731,3760.8,3759.6,9.2094]
[1641080775675,3.81526731,3760.8,3760.6,0.00682108]
[1641080775877,2.45037101,3760.7,3760.5,0.00738951]
[1641080776273,4.44518201,3760.7,3760.5,0.00738951]
[1641080776572,2.43348574,3760.6,3760.5,0.00738951]
[1641080776971,3.43348574,3760.6,3760.5,0.00738951]
[1641080777174,3.43348574,3760.6,3760.1,0.0096632]
[1641080777373,0.6649955,3760.4,3760.0,0.01023162]
[1641080777613,2.4244322,3760.3,3759.9,0.01080005]
[1641080777818,0.6649955,3760.4,3759.9,0.01080005]
[1641080778016,3.04695183,3760.4,3759.9,0.01080005]
[1641080778420,0.66501,3760.2,3759.9,0.01080005]
[1641080787420,2.37605169,3760.1,3759.9,0.01080005]
[1641080787721,0.66501,3760.2,3759.9,0.01080005]
[1641080788871,0.66493,3760.5,3759.9,0.01080005]
[1641080789268,1.35756374,3760.8,3759.9,0.01080005]
[1641080790068,0.6649,3760.7,3759.9,0.01080005]
[1641080791175,3.71639879,3760.8,3759.9,0.01080005]
[1641080791373,1.35756374,3760.8,3759.9,0.01080005]
[1641080793734,2.02244374,3760.8,3759.9,0.01080005]
[1641080793937,0.66488,3760.8,3759.9,0.01080005]
[1641080794935,0.66483,3761.0,3759.9,0.01080005]
[1641080795134,0.66483,3761.0,3760.0,0.96482]
[1641080795336,1.7705656,3761.0,3760.0,0.66482]
[1641080795536,1.7705656,3761.0,3760.1,0.0096632]
[1641080798086,1.7705656,3761.0,3760.2,0.6647951]
[1641080798489,1.7705656,3761.0,3760.3,0.00852635]
[1641080798888,1.7705656,3761.0,3760.3,1.29636721]
[1641080799092,1.7705656,3761.0,3760.3,1.59636721]
[1641080799289,1.1057356,3761.0,3760.3,1.59636721]
[1641080799489,1.1057356,3761.0,3760.3,1.89636721]
[1641080799891,1.1057356,3761.0,3760.3,0.60852635]
[1641080801528,1.1057356,3761.0,3760.3,0.30852635]
[1641080801730,2.34237419,3760.9,3760.3,0.00852635]
[1641080801928,2.40471599,3760.9,3760.3,0.00852635]
[1641080802128,1.1057356,3761.0,3759.9,0.01080005]
[1641080802328,2.42072173,3760.9,3759.9,0.01080005]
[1641080802528,0.66491,3760.6,3759.9,0.01080005]
[1641080802730,2.42072173,3760.9,3759.9,0.01080005]
[1641080802731,2.4073232,3760.5,3759.9,0.01080005]
[1641080802927,2.6596649,3760.9,3759.9,0.01080005]
[1641080802928,2.58805074,3760.8,3759.9,0.01080005]
[1641080803728,0.6944141,3760.7,3759.9,0.01080005]
[1641080803982,2.39025303,3760.6,3759.9,0.01080005]
[1641080804180,3.05521303,3760.6,3759.9,0.01080005]
[1641080804386,0.66494,3760.5,3759.9,0.01080005]
[1641080804681,3.72016303,3760.6,3759.9,0.01080005]
[1641080804982,3.0364641,3760.6,3759.9,0.01080005]
[1641080805181,0.6944141,3760.7,3759.9,0.01080005]
[1641080805382,0.6944141,3760.7,3759.9,1.12054937]
[1641080805781,0.6944141,3760.7,3760.0,0.01023162]
[1641080806182,0.6944141,3760.7,3760.0,0.31023162]
[1641080806682,0.6944141,3760.7,3760.1,0.0096632]
[1641080812084,1.3593041,3760.7,3760.1,0.0096632]
[1641080812982,0.6944141,3760.7,3760.1,2.15384423]
[1641080813181,1.36002643,3760.9,3760.1,2.15384423]
[1641080813183,1.36002643,3760.9,3760.4,0.66472]
[1641080813380,3.46706129,3761.1,3760.4,0.66472]
[1641080813581,1.36002643,3761.4,3760.5,0.00738951]
[1641080813782,1.36002643,3761.4,3760.5,2.53622923]
[1641080813980,1.36002643,3761.4,3760.5,0.00738951]
[1641080814182,1.36002643,3761.4,3760.7,1.3220632]
[1641080814383,1.36002643,3761.4,3760.7,1.6220632]
[1641080814589,1.36002643,3761.5,3760.8,0.00568424]
[1641080814785,1.36002643,3761.5,3761.1,0.66464]
[1641080814987,1.36002643,3761.5,3760.9,0.664628]
[1641080815232,1.05317839,3761.6,3761.2,0.00341054]
[1641080815233,2.41320482,3761.6,3761.2,0.00341054]
[1641080815426,2.41320482,3761.6,3761.0,0.3]
[1641080815427,2.41320482,3761.6,3761.0,0.30454739]
[1641080815626,2.41320482,3761.6,3761.1,0.00397897]
[1641080816026,2.41320482,3761.6,3760.9,0.00511581]
[1641080816727,2.41320482,3761.6,3760.5,0.00738951]
[1641080816930,1.36002643,3761.5,3760.5,0.00738951]
[1641080817528,2.02480643,3761.5,3760.5,0.00738951]
[1641080817729,1.36002643,3761.5,3760.5,0.00738951]
[1641080818528,1.36002643,3761.5,3760.9,0.3]
[1641080818728,1.36002643,3761.5,3761.0,2.38626701]
[1641080818977,1.36002643,3761.5,3761.0,0.00454739]
[1641080819179,1.05317839,3761.6,3761.1,0.00397897]
[1641080819375,1.05317839,3761.6,3761.0,0.00454739]
[1641080819777,1.05317839,3761.6,3761.1,0.6646547]
[1641080819976,1.05317839,3761.6,3761.1,0.3]
[1641080820274,1.05317839,3761.6,3760.9,0.66469]
[1641080820275,1.05317839,3761.6,3761.2,0.00341054]
[1641080820676,1.05317839,3761.6,3761.0,0.00454739]
[1641080821076,1.05317839,3761.6,3761.0,0.30454739]
[1641080821478,1.05317839,3761.6,3761.1,0.00397897]
[1641080823031,1.05317839,3761.6,3761.1,0.66863587]
[1641080823227,1.05317839,3761.6,3761.1,0.00397897]
[1641080823427,1.05317839,3761.6,3761.2,0.00341054]
[1641080823627,1.05317839,3761.6,3761.1,0.00397897]
[1641080823833,1.05317839,3761.6,3761.2,0.00341054]
[1641080824030,1.05317839,3761.6,3761.1,0.60397897]
[1641080824230,1.05317839,3761.6,3761.2,0.00341054]
[1641080829183,0.10383636,3761.8,3761.2,0.00341054]
[1641080829385,1.36002643,3761.7,3761.2,0.00341054]
[1641080829783,1.46386279,3761.8,3761.2,0.00341054]
[1641080829987,1.46386279,3761.8,3761.1,2.62753584]
[1641080829988,1.46386279,3761.8,3761.3,0.6646225]
[1641080830249,1.46386279,3761.8,3761.2,0.00341054]
[1641080830441,2.72404718,3761.8,3761.4,0.0022737]
[1641080830643,2.72404718,3761.8,3761.2,0.00341054]
[1641080831443,1.36402075,3761.8,3761.2,0.00341054]
[1641080831645,1.36402075,3761.8,3761.5,0.6645889]
[1641080832044,1.36402075,3761.8,3761.6,0.00113685]
[1641080836892,2.72404718,3761.8,3761.6,0.00113685]
[1641080837092,1.46386279,3761.8,3761.6,0.00113685]
[1641080837492,1.46386279,3761.8,3761.6,1.30113685]
[1641080837724,0.10383636,3761.8,3761.6,1.30113685]
[1641080838127,0.10383636,3761.8,3761.7,8.63820364]
[1641080838327,0.10383636,3761.8,3761.7,8.93820364]
[1641080838528,3.46706129,3762.3,3761.8,0.10383636]
[1641080838831,1.36002643,3762.8,3761.8,0.10383636]
[1641080838832,1.36002643,3762.8,3761.9,1.71174]
[1641080839027,1.36002643,3762.8,3762.3,1.3286052]
[1641080839227,1.36002643,3762.8,3762.2,2.6572003]
[1641080839427,1.36002643,3762.8,3762.3,1.3]
[1641080839627,1.36002643,3763.1,3762.3,1.6]
[1641080840029,0.00682108,3763.0,3762.3,1.6]
[1641080840431,0.00625266,3762.9,3762.3,0.6]
[1641080840632,0.00625266,3762.9,3762.7,1.3285325]
[1641080840837,0.00568423,3762.8,3762.7,1.3285325]
[1641080841031,0.00568423,3762.8,3762.7,11.80420366]
[1641080841236,0.00568423,3762.8,3762.7,10.80420366]
[1641080841485,0.00568423,3762.8,3762.7,12.46847366]
[1641080841991,0.00568423,3762.8,3762.7,13.13273366]
[1641080843089,0.00568423,3762.8,3762.7,3.09119716]
[1641080843294,0.00568423,3762.8,3762.7,1.09840466]
[1641080843687,0.00568423,3762.8,3762.4,1.09840466]
[1641080844086,0.00511581,3762.7,3762.4,1.09840466]
[1641080844289,0.00511581,3762.7,3762.3,0.13819997]
[1641080844489,0.00454739,3762.6,3762.3,0.13819997]
[1641080844788,0.00397896,3762.5,3762.3,0.13819997]
[1641080845241,0.00341054,3762.4,3762.3,5.58819997]
[1641080848336,0.00341054,3762.4,3762.3,7.88648328]
[1641080848542,0.00341054,3762.4,3762.3,8.55083328]
[1641080853640,0.00341054,3762.4,3762.3,9.55083328]
[1641080854041,0.00341054,3762.4,3762.3,9.93383328]
[1641080855643,0.00341054,3762.4,3762.3,25.53383328]
[1641080855846,0.06863311,3763.2,3762.8,0.6642]
[1641080856044,0.06863311,3763.2,3762.9,3.30053155]
[1641080856243,0.00397896,3763.1,3762.9,3.96475155]
[1641080856490,0.00397896,3763.1,3763.0,8.53377794]
[1641080856694,0.06863311,3763.2,3763.0,8.53377794]
[1641080856885,0.06863311,3763.2,3763.1,8.29477553]
[1641080857087,0.06863311,3763.2,3763.1,9.29477553]
[1641080857287,0.00454739,3763.2,3763.1,9.29477553]
[1641080857486,0.00454739,3763.2,3763.1,4.79477553]
[1641080857686,0.00454739,3763.2,3763.1,1.0]
[1641080858088,0.00454739,3763.2,3763.0,1.96422]
[1641080858289,0.00454739,3763.2,3763.0,0.96422]
[1641080858491,0.06863171,3763.6,3763.0,0.96422]
[1641080858492,0.00397896,3763.1,3763.0,0.96422]
[1641080858889,0.00625266,3763.1,3763.0,0.96422]
[1641080859090,0.00625266,3763.1,3763.0,8.13648151]
[1641080861542,0.00625266,3763.1,3763.0,9.13651744]
[1641080861744,0.00625266,3763.1,3763.0,9.1393449]
[1641080867087,0.00625266,3763.1,3763.0,6.86422]
[1641080867488,0.00625266,3763.1,3763.0,9.13955288]
[1641080867740,0.00625266,3763.1,3763.0,6.86422]
[1641080867941,0.00625266,3763.1,3763.0,9.17939907]
[1641080868144,1.3849108,3763.6,3763.1,4.0]
[1641080868341,1.3849108,3763.6,3763.3,0.66423]
[1641080868545,0.02488437,3763.6,3763.4,0.6642259]
[1641080869443,0.66423,3764.1,3763.4,0.6642259]
[1641080869641,0.66423,3764.1,3763.4,1.3284559]
[1641080869843,0.00284211,3764.0,3763.4,1.3284559]
[1641080870243,0.00227369,3763.9,3763.4,1.3284559]
[1641080870743,0.00170527,3763.8,3763.4,1.3284559]
[1641080871142,0.00113684,3763.7,3763.4,1.3284559]
[1641080871587,0.00113684,3763.7,3763.4,0.6642259]
[1641080871787,0.00113684,3763.7,3763.2,0.66427]
[1641080871992,0.00113684,3763.7,3763.0,0.00284212]
[1641080872192,0.00080015,3763.6,3763.3,0.00113685]
[1641080873187,0.00080015,3763.6,3762.9,0.00341054]
[1641080873390,0.66441,3763.3,3762.9,0.00341054]
[1641080874792,0.00080015,3763.6,3763.0,0.6643]
[1641080875232,0.00080015,3763.6,3763.1,0.0022737]
[1641080875427,1.36082658,3763.6,3763.1,0.0022737]
[1641080875627,1.36082658,3763.6,3762.7,1.00454739]
[1641080876031,0.00080015,3763.6,3763.1,0.96429]
[1641080876230,0.66429,3763.4,3763.1,1.26429]
[1641080876434,0.66429,3763.4,3763.2,0.00170527]
[1641080876630,0.66429,3763.4,3763.2,0.66595557]
[1641080877030,0.66429,3763.4,3763.3,0.00113685]
[1641080878631,0.00080015,3763.6,3763.4,0.6642421]
[1641080878888,0.00080015,3763.6,3763.5,9.97883972]
[1641080879086,0.00080015,3763.6,3763.5,8.45]
[1641080880282,0.00080015,3763.6,3763.5,9.77824]
[1641080881083,0.00080015,3763.6,3763.5,12.05914811]
[1641080881283,0.00080015,3763.6,3763.5,12.11732138]
[1641080881483,0.00080015,3763.6,3763.5,12.12109812]
[1641080882833,0.00080015,3763.6,3763.5,9.77824]
[1641080883034,0.00080015,3763.6,3763.5,12.0669525]
[1641080885040,0.00080015,3763.6,3763.5,12.05763634]
[1641080885739,0.00080015,3763.6,3763.5,9.77824]
[1641080886393,0.00080015,3763.6,3763.5,12.05379197]
[1641080886595,0.00080015,3763.6,3763.5,12.05753946]
[1641080886891,0.00080015,3763.6,3763.5,9.77824]
[1641080887092,0.00080015,3763.6,3763.5,12.06798264]
[1641080887292,0.00080015,3763.6,3763.5,9.77824]
[1641080887791,0.00080015,3763.6,3763.5,12.08945421]
[1641080887992,0.00080015,3763.6,3763.5,9.77824]
[1641080889194,0.00080015,3763.6,3763.5,12.11433666]
[1641080889394,0.00080015,3763.6,3763.5,9.77824]
[1641080889593,0.00080015,3763.6,3763.5,12.24585482]
[1641080889794,0.00080015,3763.6,3763.5,12.12596705]
[1641080889993,0.00080015,3763.6,3763.5,9.77824]
[1641080890247,0.00080015,3763.6,3763.5,12.05092166]
[1641080890443,0.00080015,3763.6,3763.5,9.77824]
[1641080890641,0.00080015,3763.6,3763.5,12.13144801]
[1641080891446,0.00080015,3763.6,3763.5,9.77824]
[1641080892241,0.00080015,3763.6,3763.5,12.04919659]
[1641080892443,0.00080015,3763.6,3763.5,12.13219301]
[1641080892644,0.00080015,3763.6,3763.4,1.3283521]
[1641080892947,0.00080015,3763.6,3763.3,0.00113685]
[1641080893345,0.00080015,3763.6,3763.2,1.12170517]
[1641080893545,0.00080015,3763.6,3763.3,0.00113685]
[1641080894194,0.6643,3763.5,3763.3,0.00113685]
[1641080894995,0.6643,3763.5,3762.9,0.00341054]
[1641080895192,0.66438,3763.3,3762.9,0.00341054]
[1641080896692,1.23385067,3763.1,3762.9,0.00341054]
[1641080896895,1.89823067,3763.1,3762.9,0.00341054]
[1641080906748,1.89823067,3763.1,3762.6,0.30511581]
[1641080906948,0.66442,3763.0,3762.7,0.00454739]
[1641080907749,1.36002643,3763.4,3762.7,1.33325119]
[1641080907949,1.36002643,3763.4,3762.7,1.63325119]
[1641080908150,1.36002643,3763.4,3762.8,0.30397897]
[1641080908553,1.36002643,3763.4,3762.9,0.00341054]
[1641080908994,1.32871,3763.5,3762.9,0.00341054]
[1641080908995,1.27705585,3763.2,3762.9,0.00341054]
[1641080909394,1.94141585,3763.2,3762.9,0.00341054]
[1641080910399,0.66431,3763.4,3762.9,0.00341054]
[1641080910598,0.66431,3763.4,3762.9,0.30341054]
[1641080910998,0.66431,3763.4,3762.9,0.60341054]
[1641080911403,0.66431,3763.4,3762.9,0.30341054]
[1641080911601,1.37810486,3763.3,3763.0,0.6643108]
[1641080911800,1.37810486,3763.3,3763.0,1.3286208]
[1641080912000,1.37810486,3763.3,3763.1,0.3022737]
[1641080912401,1.37810486,3763.3,3763.2,2.90170527]
[1641080913245,0.66431,3763.4,3763.2,2.90170527]
[1641080913646,0.66431,3763.4,3763.3,0.00113685]
[1641080914049,0.66431,3763.4,3763.3,0.30113685]
[1641080914946,1.72576684,3763.4,3763.3,0.30113685]
[1641080915346,1.72576684,3763.4,3763.3,3.05113685]
[1641080916148,1.06145684,3763.4,3763.3,3.05113685]
[1641080916894,0.06819675,3763.7,3763.3,3.05113685]
[1641080917093,0.06819675,3763.7,3763.4,0.6642615]
[1641080917292,1.36002643,3763.9,3763.5,0.3]
[1641080917693,0.00170527,3763.8,3763.5,0.3]
[1641080918093,0.00113684,3763.7,3763.5,0.3]
[1641080918295,0.00113684,3763.7,3763.6,4.11422]
[1641080918593,0.00113684,3763.7,3763.6,5.3784134]
[1641080920636,0.00113684,3763.7,3763.6,7.64731206]
[1641080920838,0.00113684,3763.7,3763.6,8.64731206]
[1641080921237,0.00113684,3763.7,3763.6,6.3784134]
[1641080921437,2.00492396,3764.2,3763.6,6.4284134]
[1641080921637,2.00492396,3764.2,3763.8,0.6641348]
[1641080921841,0.0022737,3764.1,3763.9,0.3]
[1641080922040,0.0022737,3764.1,3763.9,0.6]
[1641080922239,0.00170527,3764.0,3763.9,0.6]
[1641080924792,0.00255251,3764.0,3763.9,0.6]
[1641080926192,0.00255251,3764.0,3763.9,0.3]
[1641080926393,0.00255251,3764.0,3763.6,1.99657433]
[1641080926595,0.66675251,3764.0,3763.6,1.99657433]
[1641080926795,0.00113685,3763.9,3763.6,1.99657433]
[1641080927195,0.00113685,3763.9,3763.6,0.6]
[1641080927644,0.00113685,3763.9,3763.6,0.3]
[1641080927845,0.66536685,3763.9,3763.6,0.3]
[1641080928448,0.66536685,3763.9,3763.6,0.9641866]
[1641080928647,0.00113685,3763.9,3763.6,0.9641866]
[1641080928847,0.00113685,3763.9,3763.7,0.3]
[1641080929650,0.00113685,3763.9,3763.5,1.3284144]
[1641080929947,0.00113685,3763.9,3763.6,0.3]
[1641080930547,0.00113685,3763.9,3763.7,1.3283142]
[1641080931047,0.00113685,3763.9,3763.7,1.6283142]
[1641080931247,0.00113685,3763.9,3763.8,0.3]
[1641080932495,0.00113685,3763.9,3763.7,0.3]
[1641080932898,0.00113685,3763.9,3763.6,1.6]
[1641080936050,0.00113685,3763.9,3763.6,0.6]
[1641080936450,0.66535685,3763.9,3763.6,0.3]
[1641080939096,0.58882853,3763.9,3763.6,0.3]
[1641080944359,0.58882853,3763.9,3763.5,0.3]
[1641080945746,0.58882853,3763.9,3763.5,0.9642151]
[1641080952138,0.58882853,3763.9,3763.5,1.6284251]
[1641080956389,0.66425,3763.8,3763.5,0.3]
[1641080962293,0.66425,3763.8,3763.5,0.964227]
[1641080962791,0.66425,3763.8,3763.5,0.3]
[1641080963596,0.66425,3763.8,3763.4,0.6642555]
[1641080963993,0.66425,3763.8,3763.5,0.30113684]
[1641080964199,2.02427643,3763.8,3763.5,0.30113684]
[1641080965645,0.00081192,3763.7,3763.5,0.30113684]
[1641080966850,0.00081192,3763.7,3763.5,0.96537284]
[1641080967145,0.00081192,3763.7,3763.6,0.3]
[1641081000616,0.00081192,3763.7,3763.4,2.90203316]
[1641081000817,0.00081192,3763.7,3763.5,0.5]
[1641081001214,0.00081192,3763.7,3763.4,2.90203316]
[1641081001615,0.00081192,3763.7,3763.5,0.664236]
[1641081001815,0.00081192,3763.7,3763.5,1.328466]
[1641081002214,0.00081192,3763.7,3763.6,0.3]
[1641081002417,0.00081192,3763.7,3763.6,4.11688546]
[1641081002951,0.00081192,3763.7,3763.6,4.41688546]
[1641081003551,0.00081192,3763.7,3763.6,3.1]
[1641081004352,0.00081192,3763.7,3763.6,0.6]
[1641081004553,0.00081192,3763.7,3763.6,0.3]
[1641081005854,0.00081192,3763.7,3763.3,1.3284999]
[1641081005855,0.00081192,3763.7,3763.4,0.3]
[1641081006053,0.66505192,3763.7,3763.3,1.2642499]
[1641081006494,0.66505192,3763.7,3763.4,0.00170527]
[1641081006694,0.66505192,3763.7,3763.4,0.66594527]
[1641081007094,0.66505192,3763.7,3763.5,0.00113684]
[1641081008898,0.66505192,3763.7,3763.5,0.66536034]
[1641081009096,0.66505192,3763.7,3763.5,0.96536034]
[1641081011264,0.00081192,3763.7,3763.5,0.96536034]
[1641081011465,0.00081192,3763.7,3763.6,0.66419]
[1641081012064,0.00081192,3763.7,3763.6,0.96419]
[1641081012466,0.00081192,3763.7,3763.6,1.26419]
[1641081014998,0.00081192,3763.7,3763.6,0.6]
[1641081015400,0.00081192,3763.7,3763.6,0.3]
[1641081015901,0.00081192,3763.7,3763.5,0.96536034]
[1641081016099,0.00081192,3763.7,3763.6,0.3]
[1641081017950,0.00081192,3763.7,3763.5,0.30113684]
[1641081018149,0.00081192,3763.7,3763.5,0.00113684]
[1641081019351,2.29558767,3763.7,3763.5,0.00113684]
[1641081022108,0.00081192,3763.7,3763.5,0.00113684]
[1641081022710,2.48697484,3763.7,3763.5,0.00113684]
[1641081022914,5.55,3763.6,3763.1,1.31688546]
[1641081023114,0.66449,3763.3,3763.1,1.31688546]
[1641081023310,1.9934942,3763.3,3763.2,0.00170527]
[1641081023513,4.25,3763.2,3763.1,1.05549073]
[1641081023715,4.25,3763.2,3762.5,0.06819618]
[1641081024011,1.38144181,3763.1,3762.5,0.06819618]
[1641081024213,1.38144181,3763.1,3762.6,0.00341054]
[1641081024214,2.38144181,3763.1,3762.6,0.00341054]
[1641081024610,0.6645823,3762.9,3762.6,0.00341054]
[1641081024812,1.9937123,3762.9,3762.6,0.00341054]
[1641081025150,2.46828229,3762.8,3762.6,0.00341054]
[1641081025750,2.46828229,3762.8,3761.9,0.30738951]
[1641081025947,0.66449,3762.4,3761.9,0.30738951]
[1641081026146,0.66449,3762.4,3762.0,0.00682108]
[1641081026348,3.69733805,3763.1,3762.0,0.00682108]
[1641081026548,1.38144181,3763.1,3762.1,0.00625266]
[1641081026847,1.38144181,3763.1,3761.9,0.3]
[1641081026848,1.38144181,3763.1,3762.0,0.00682108]
[1641081027048,1.33144181,3763.1,3762.0,0.00682108]
[1641081028449,0.66442,3762.6,3762.0,0.00682108]
[1641081029504,2.66028181,3763.1,3762.2,1.38279036]
[1641081029702,0.66439,3762.9,3762.2,1.38279036]
[1641081029902,6.8892,3763.5,3762.3,0.00511581]
[1641081030104,3.40336874,3763.4,3762.4,0.383]
[1641081030303,3.40336874,3763.4,3762.5,2.62841646]
[1641081030505,3.40336874,3763.4,3762.8,0.66422]
[1641081030703,3.40336874,3763.4,3763.0,0.6642265]
[1641081030907,3.40336874,3763.6,3762.9,2.46169942]
[1641081031102,3.40336874,3763.6,3762.9,3.06169942]
[1641081031305,3.40564243,3763.6,3763.0,0.00113685]
[1641081031503,0.00227369,3763.6,3763.0,0.00113685]
[1641081032103,0.00227369,3763.6,3763.3,0.66423]
[1641081032304,0.00227369,3763.6,3763.0,0.00113685]
[1641081033148,0.00227369,3763.6,3763.1,0.6642446]
[1641081033351,0.00227369,3763.6,3763.2,0.3]
[1641081037211,0.00227369,3763.6,3763.2,0.25]
[1641081044407,0.00227369,3763.6,3763.0,0.30113685]
[1641081044408,0.66429,3763.4,3763.0,0.30113685]
[1641081044606,0.66429,3763.4,3763.0,0.00113685]
[1641081045404,0.66429,3763.4,3763.0,0.6642737]
[1641081045608,0.00170527,3763.3,3762.5,0.0601]
[1641081045815,2.46767365,3763.3,3762.4,1.75826776]
[1641081046009,1.18943376,3763.8,3762.4,1.75826776]
[1641081046010,0.66442,3763.1,3762.7,0.00170527]
[1641081046411,1.3289178,3763.1,3762.7,0.00170527]
[1641081046610,0.66442,3763.1,3762.6,0.00227369]
[1641081046809,1.0301843,3763.0,3762.6,0.00227369]
[1641081047208,2.0301843,3763.0,3762.6,0.00227369]
[1641081047410,0.66454,3762.5,3761.9,0.00625266]
[1641081047664,1.32907,3762.6,3761.9,0.00625266]
[1641081047865,2.34800453,3762.5,3761.9,0.00625266]
[1641081048065,2.60654165,3762.8,3761.9,0.00625266]
[1641081048669,0.66456,3762.7,3761.9,0.00625266]
[1641081048867,2.39659665,3762.6,3761.9,0.00625266]
[1641081049269,1.77056255,3762.2,3761.9,0.00625266]
[1641081050268,0.66457,3762.2,3761.9,0.00625266]
[1641081051500,0.66457,3762.2,3761.9,0.30625266]
[1641081051903,0.66457,3762.2,3762.0,0.00568423]
[1641081052501,1.32907,3762.4,3762.0,0.00568423]
[1641081052502,0.66447,3762.4,3762.0,0.00568423]
[1641081054904,0.56447,3762.4,3762.0,0.00568423]
[1641081056855,0.56447,3762.4,3762.0,0.67013423]
[1641081057057,0.56447,3762.4,3762.0,0.97013423]
[1641081057253,0.56447,3762.4,3762.1,0.00511581]
[1641081059824,0.66443,3762.6,3762.2,0.6644273]
[1641081060025,0.66443,3762.6,3762.2,0.9644273]
[1641081060323,0.66443,3762.6,3762.3,0.00397896]
[1641081061023,0.66443,3762.6,3762.5,1.11038588]
[1641081061424,0.66443,3762.6,3762.5,1.113228]
[1641081065053,0.66443,3762.6,3762.5,0.00284212]
[1641081065454,0.66443,3762.6,3762.3,0.00397896]
[1641081067309,0.66443,3762.6,3762.3,3.50397896]
[1641081067510,0.66443,3762.6,3762.3,0.30397896]
[1641081067705,0.66443,3762.6,3762.4,0.00341054]
[1641081067900,0.66443,3762.6,3762.4,0.30341054]
[1641081068102,0.66443,3762.6,3762.3,0.00397896]
[1641081068305,0.66443,3762.6,3762.5,0.00284212]
[1641081068501,0.66443,3762.6,3762.3,0.00397896]